fUST/lending_fUST_20241106
["ID","MTS","AMOUNT","RATE_DAILY","PERIOD"]
[341379145,1730859940204,-150.0,0.00032,2]
[341379146,1730859940226,-165.0,0.00033,2]
[341379147,1730859940247,-193.0,0.00033151,2]
[341379148,1730859940271,-3.925361,0.000336,31]
[341379150,1730859999404,169.080197,0.00013973,2]
[341379151,1730860033133,-150.0,0.00027,2]
[341379152,1730860033156,-150.0,0.00029,2]
[341379153,1730860033178,-151.0,0.0003,120]
[341379154,1730860033200,-151.0,0.0003,120]
[341379155,1730860033221,-150.0,0.00032,2]
[341379156,1730860033242,-165.0,0.00033,2]
[341379157,1730860033267,-157.164639,0.000336,31]
[341379158,1730860033288,-155.0,0.00034266,30]
[341379159,1730860033309,-155.0,0.00034266,30]
[341379160,1730860033331,-155.0,0.00034266,30]
[341379161,1730860033353,-231.38052396,0.00034266,30]
[341379162,1730860033374,-151.0,0.00034274,120]
[341379163,1730860033395,-193.0,0.00034521,2]
[341379164,1730860033416,-192.226199,0.00034684,120]
[341379165,1730860033438,-188.720816,0.00034874,2]
[341379166,1730860033462,-161.09,0.000356,31]
[341379167,1730860033488,-161.09,0.000356,31]
[341379168,1730860033511,-151.0,0.00036,120]
[341379169,1730860033533,-194.0,0.00036247,2]
[341379170,1730860033558,-161.09,0.000377,31]
[341379171,1730860033584,-161.09,0.000377,31]
[341379172,1730860033606,-321.14922965,0.00038355,2]
[341379173,1730860033629,-211.54749752,0.00038355,15]
[341379174,1730860036128,-338.04907881,0.00038355,15]
[341379175,1730860036152,-218.99828901,0.00038355,7]
[341379176,1730860036173,-391.43846588,0.00038355,15]
[341379177,1730860036196,-153.05986419,0.00038355,15]
[341379178,1730860036218,-188.24860883,0.00038355,15]
[341379179,1730860037101,-311.75139117,0.00038355,15]
[341379180,1730860037126,-500.0,0.00038355,15]
[341379181,1730860037148,-161.27132727,0.00038355,7]
[341379182,1730860040091,-338.72867273,0.00038355,7]
[341379183,1730860040114,-500.0,0.00038355,2]
[341379184,1730860040136,-115.70065767,0.00038355,15]
[341379185,1730860047096,-159.15433932,0.00038355,15]
[341379186,1730860047118,-192.10966467,0.00038356,14]
[341379187,1730860047146,-168.52903609,0.00038356,51]
[341379188,1730860047168,-502.95026774,0.00038356,14]
[341379189,1730860047190,-500.0,0.00038356,2]
[341379190,1730860047211,-201.36559308,0.00038356,14]
[341379209,1730860180274,520.83333333,0.00030684,2]
[341379294,1730860232365,-173.8956921,0.00032,120]
[341379296,1730860232377,-1970.11915059,0.00033,2]
[341379298,1730860232387,-275.33716953,0.000333,2]
[341379300,1730860232397,-1097.68409552,0.00034269,2]
[341379302,1730860232407,-2000.0,0.00034269,2]
[341379304,1730860232417,-300.0,0.00034269,2]
[341379306,1730860232427,-798.26126961,0.00034269,2]
[341379308,1730860232436,-517.2757658,0.00034269,2]
[341379310,1730860232446,-292.74062689,0.00034269,2]
[341379312,1730860232456,-414.62927262,0.00034269,2]
[341379315,1730860232468,-3761.20866034,0.00034269,2]
[341379317,1730860232478,-322.37149251,0.00034269,2]
[341379319,1730860232487,-13.68868354,0.00034269,2]
[341379321,1730860232503,-325.3699113,0.00034269,2]
[341379323,1730860232513,-1192.54499921,0.00034269,2]
[341379324,1730860232523,-287.64090443,0.00034269,2]
[341379326,1730860232533,-164.21657147,0.00034269,2]
[341379328,1730860232543,-1089.30169737,0.00034269,2]
[341379368,1730860238470,-3056.82193286,0.00034269,2]
[341379369,1730860238479,-1193.6444769,0.00034269,2]
[341379370,1730860238489,-155.24003734,0.00034269,2]
[341379371,1730860238499,-518.5094159,0.00034269,2]
[341379372,1730860238511,-5764.49408467,0.00034269,5]
[341379373,1730860238521,-439.76688807,0.00034269,2]
[341379374,1730860238530,-224.63340677,0.00034269,2]
[341379375,1730860238539,-1024.64281201,0.00034269,2]
[341379376,1730860238549,-1839.12649244,0.00034269,2]
[341379377,1730860238558,-910.32678067,0.00034269,2]
[341379378,1730860238567,-165.96166564,0.00034269,7]
[341379379,1730860238577,-461.33481195,0.00034269,2]
[341379380,1730860238586,-176.51957774,0.00034269,2]
[341379381,1730860238595,-1746.34920239,0.00034269,2]
[341379384,1730860239115,-1326.69886701,0.00034269,2]
[341379385,1730860239124,-230.26946203,0.00034269,2]
[341379386,1730860239134,-835.66832653,0.00034269,2]
[341379387,1730860239147,-886.319,0.00034269,2]
[341379388,1730860239156,-1890.55586227,0.00034269,2]
[341379389,1730860239165,-222.12667966,0.00034269,2]
[341379390,1730860239176,-1555.39928792,0.00034269,5]
[341379392,1730860239185,-1240.0,0.00034269,2]
[341379394,1730860239195,-200.0,0.00034269,2]
[341379396,1730860239204,-160.08498498,0.00034269,2]
[341379398,1730860239213,-186.74484514,0.00034269,2]
[341379400,1730860239222,-200.0,0.00034269,2]
[341379401,1730860239231,-257.18464881,0.00034664,2]
[341379403,1730860239240,-186.2332637,0.00035,30]
[341379404,1730860239250,-5469.67123435,0.0003503,2]
[341379405,1730860239262,-155.52445986,0.0003612,60]
[341379406,1730860239271,-153.04859917,0.00038256,110]
[341379407,1730860239281,-172.94907217,0.00038355,15]
[341379408,1730860239290,-187.3580051,0.00038355,15]
[341379409,1730860239299,-251.47810617,0.00038355,15]
[341379410,1730860239309,-500.0,0.00038356,14]
[341379411,1730860239318,-431.40655992,0.00038356,14]
[341379412,1730860239329,-500.0,0.00038356,14]
[341379413,1730860239339,-765.44,0.00038356,14]
[341379414,1730860239349,-500.0,0.00038356,14]
[341379415,1730860239359,-242.91344844,0.00038356,14]
[341379416,1730860239369,-500.0,0.00038356,14]
[341379417,1730860239379,-500.0,0.00038356,14]
[341379418,1730860239388,-647.78,0.00038356,14]
[341379419,1730860239397,-1335.42,0.00038356,14]
[341379420,1730860239407,-500.0,0.00038356,14]
[341379421,1730860239416,-506.68445231,0.00038356,14]
[341379422,1730860239425,-390.18135621,0.00038356,14]
[341379423,1730860239435,-498.70162293,0.00038356,14]
[341379424,1730860239444,-500.0,0.00038356,14]
[341379425,1730860239454,-500.0,0.00038356,14]
[341379426,1730860239463,-2232.15,0.00038356,14]
[341379427,1730860239472,-564.523829,0.00038356,14]
[341379428,1730860239481,-500.0,0.00038356,14]
[341379429,1730860239490,-500.0,0.00038356,14]
[341379430,1730860239499,-500.0,0.00038356,14]
[341379431,1730860239512,-507.64098399,0.00038356,14]
[341379432,1730860239521,-500.0,0.00038356,14]
[341379433,1730860239530,-272.07893186,0.00038356,14]
[341379434,1730860239540,-500.0,0.00038356,14]
[341379435,1730860239549,-500.0,0.00038356,14]
[341379436,1730860239558,-3651.9,0.00038356,14]
[341379437,1730860239567,-500.0,0.00038356,14]
[341379438,1730860239576,-500.0,0.00038356,14]
[341379439,1730860239586,-238.15768963,0.00038356,14]
[341379488,1730860243085,520.83333333,0.00028217,2]
[341379489,1730860244293,-489.43884723,0.00034268,7]
[341379490,1730860244303,-500.0,0.00038355,15]
[341379491,1730860244312,-500.0,0.00038355,15]
[341379492,1730860244322,-163.94890407,0.00038355,15]
[341379493,1730860244333,-207.0483748,0.00038355,15]
[341379494,1730860244343,-390.55,0.00038355,15]
[341379495,1730860244352,-4764.45231037,0.00038356,14]
[341379497,1730860244362,-163.17532197,0.00038356,14]
[341379498,1730860244374,-500.0,0.00038356,14]
[341379500,1730860244384,-958.48,0.00038356,14]
[341379502,1730860244394,-500.0,0.00038356,2]
[341379504,1730860244404,-1560.96,0.00038356,14]
[341379506,1730860244414,-500.0,0.00038356,14]
[341379508,1730860244424,-500.0,0.00038356,14]
[341379509,1730860244434,-1693.4,0.00038356,14]
[341379510,1730860244444,-500.0,0.00038356,14]
[341379511,1730860244453,-500.0,0.00038356,14]
[341379512,1730860244463,-500.0,0.00038356,14]
[341379513,1730860244473,-645.95664154,0.00038356,14]
[341379522,1730860245657,186.071,0.0003,2]
[341379529,1730860246343,-500.0,0.00034268,7]
[341379530,1730860246353,-500.0,0.00034268,7]
[341379531,1730860246363,-500.0,0.00034268,7]
[341379532,1730860246373,-500.0,0.00034268,7]
[341379533,1730860246384,-119.43930797,0.00034268,7]
[341379534,1730860246396,-236.94031475,0.00034268,7]
[341379535,1730860246406,-500.0,0.00034268,7]
[341379536,1730860246416,-500.0,0.00034268,7]
[341379537,1730860246426,-500.0,0.00034268,7]
[341379538,1730860246437,-500.0,0.00034268,7]
[341379539,1730860246447,-307.71215611,0.00034268,7]
[341379540,1730860246460,-192.28784389,0.00034268,7]
[341379541,1730860246470,-252.37547984,0.00034268,7]
[341379542,1730860246481,-529.0,0.00038124,2]
[341379543,1730860246492,-180.29335846,0.00038356,14]
[341379544,1730860246503,-500.0,0.00038356,14]
[341379545,1730860246517,-500.0,0.00038356,14]
[341379546,1730860246528,-500.0,0.00038356,14]
[341379547,1730860246538,-678.84,0.00038356,14]
[341379548,1730860246549,-500.0,0.00038356,14]
[341379549,1730860246559,-500.0,0.00038356,14]
[341379550,1730860246569,-500.0,0.00038356,14]
[341379551,1730860246580,-153.0,0.00038372,2]
[341379552,1730860246589,-153.0,0.00038372,2]
[341379553,1730860246599,-151.0,0.00038548,120]
[341379554,1730860246610,-453.46,0.0003862,10]
[341379555,1730860246620,-377.89,0.0003862,10]
[341379556,1730860246629,-500.0,0.00038629,7]
[341379557,1730860246639,-500.0,0.00038629,7]
[341379558,1730860246649,-554.92276175,0.00038629,7]
[341379559,1730860246658,-500.0,0.00038629,7]
[341379560,1730860246668,-1682.22,0.00038629,14]
[341379561,1730860246678,-500.0,0.00038629,14]
[341379562,1730860246688,-794.19,0.00038629,14]
[341379563,1730860246697,-511.67339076,0.0003863,14]
[341379564,1730860246706,-500.0,0.0003863,14]
[341379565,1730860246716,-765.44,0.0003863,14]
[341379566,1730860246725,-500.0,0.0003863,14]
[341379567,1730860246735,-500.0,0.0003863,14]
[341379568,1730860246744,-500.0,0.0003863,14]
[341379569,1730860246754,-647.78,0.0003863,14]
[341379570,1730860246767,-1335.42,0.0003863,14]
[341379571,1730860246776,-500.0,0.0003863,14]
[341379572,1730860246786,-500.0,0.0003863,14]
[341379573,1730860246796,-2232.15,0.0003863,14]
[341379574,1730860246805,-577.26816171,0.0003863,14]
[341379575,1730860246815,-500.0,0.0003863,14]
[341379576,1730860246824,-500.0,0.0003863,14]
[341379577,1730860246835,-500.0,0.0003863,14]
[341379578,1730860246844,-500.0,0.0003863,14]
[341379579,1730860246855,-500.0,0.0003863,14]
[341379580,1730860246865,-3651.9,0.0003863,14]
[341379581,1730860246876,-500.0,0.0003863,14]
[341379582,1730860246886,-500.0,0.0003863,14]
[341379583,1730860246896,-5002.61,0.0003863,14]
[341379584,1730860246905,-500.0,0.0003863,14]
[341379585,1730860246915,-958.48,0.0003863,14]
[341379586,1730860246925,-500.0,0.0003863,2]
[341379587,1730860246934,-1560.96,0.0003863,14]
[341379588,1730860246944,-500.0,0.0003863,14]
[341379589,1730860246953,-500.0,0.0003863,14]
[341379590,1730860246962,-1693.4,0.0003863,14]
[341379591,1730860246972,-500.0,0.0003863,14]
[341379592,1730860246981,-500.0,0.0003863,14]
[341379593,1730860246991,-500.0,0.0003863,14]
[341379594,1730860247000,-826.25,0.0003863,14]
[341379595,1730860247009,-500.0,0.0003863,14]
[341379596,1730860247022,-500.0,0.0003863,14]
[341379597,1730860247031,-382.40574615,0.0003863,14]
[341379598,1730860247041,-678.84,0.0003863,14]
[341379599,1730860247050,-500.0,0.0003863,14]
[341379600,1730860247060,-502.68911794,0.0003863,14]
[341379601,1730860247069,-535.14809711,0.0003863,14]
[341379602,1730860247079,-193.0,0.00038663,14]
[341379603,1730860247090,-2393.0,0.00038731,2]
[341379604,1730860247101,-150.0,0.00038731,2]
[341379605,1730860247110,-1101.365,0.00038731,2]
[341379606,1730860247121,-575.27,0.00038894,3]
[341379607,1730860247134,-1682.22,0.00038903,14]
[341379608,1730860247143,-500.0,0.00038903,14]
[341379609,1730860247153,-794.19,0.00038903,14]
[341379610,1730860247163,-999.0,0.00038903,120]
[341379611,1730860247174,-500.0,0.00038904,14]
[341379612,1730860247184,-765.44,0.00038904,14]
[341379613,1730860247193,-187.93917582,0.00038904,14]
[341379614,1730860247203,-500.0,0.00038904,14]
[341379615,1730860247214,-500.0,0.00038904,14]
[341379616,1730860247223,-647.78,0.00038904,14]
[341379617,1730860247234,-1335.42,0.00038904,14]
[341379618,1730860247244,-500.0,0.00038904,14]
[341379619,1730860247253,-500.0,0.00038904,14]
[341379620,1730860247263,-2232.15,0.00038904,14]
[341379621,1730860247274,-500.0,0.00038904,14]
[341379622,1730860247284,-500.0,0.00038904,14]
[341379623,1730860247294,-500.0,0.00038904,14]
[341379624,1730860247303,-500.0,0.00038904,14]
[341379625,1730860247314,-500.0,0.00038904,14]
[341379626,1730860247323,-3651.9,0.00038904,14]
[341379627,1730860247335,-500.0,0.00038904,14]
[341379628,1730860247344,-500.0,0.00038904,14]
[341379629,1730860247354,-5002.61,0.00038904,14]
[341379630,1730860247363,-500.0,0.00038904,14]
[341379631,1730860247372,-958.48,0.00038904,14]
[341379632,1730860247382,-358.14408486,0.00038904,2]
[341379633,1730860247393,-1560.96,0.00038904,14]
[341379634,1730860247403,-500.0,0.00038904,14]
[341379635,1730860247412,-500.0,0.00038904,14]
[341379636,1730860247421,-1693.4,0.00038904,14]
[341379637,1730860247430,-500.0,0.00038904,14]
[341379638,1730860247440,-500.0,0.00038904,14]
[341379639,1730860247449,-826.25,0.00038904,14]
[341379640,1730860247458,-500.0,0.00038904,14]
[341379641,1730860247468,-500.0,0.00038904,14]
[341379642,1730860247477,-678.84,0.00038904,14]
[341379643,1730860247487,-500.0,0.00038904,14]
[341379644,1730860247496,-807.580782,0.00039,58]
[341379645,1730860247506,-192658.92480419,0.00039,2]
[341379646,1730860247520,-500.0,0.00039078,2]
[341379647,1730860247529,-1682.22,0.00039177,14]
[341379648,1730860247538,-500.0,0.00039177,14]
[341379649,1730860247548,-794.19,0.00039177,14]
[341379650,1730860247557,-500.0,0.00039178,14]
[341379651,1730860247566,-765.44,0.00039178,14]
[341379652,1730860247576,-479.05599291,0.00039178,14]
[341379653,1730860247586,-500.0,0.00039178,14]
[341379654,1730860247596,-647.78,0.00039178,14]
[341379655,1730860247605,-1335.42,0.00039178,14]
[341379656,1730860247615,-500.0,0.00039178,14]
[341379657,1730860247624,-500.0,0.00039178,14]
[341379658,1730860247634,-2232.15,0.00039178,14]
[341379659,1730860247644,-500.0,0.00039178,14]
[341379660,1730860247653,-500.0,0.00039178,14]
[341379661,1730860247663,-500.0,0.00039178,14]
[341379662,1730860247672,-500.0,0.00039178,14]
[341379663,1730860247682,-500.0,0.00039178,14]
[341379664,1730860247691,-3651.9,0.00039178,14]
[341379665,1730860247700,-500.0,0.00039178,14]
[341379666,1730860247709,-281.44252438,0.00039178,14]
[341379667,1730860247719,-5002.61,0.00039178,14]
[341379668,1730860247729,-500.0,0.00039178,14]
[341379669,1730860247739,-958.48,0.00039178,14]
[341379670,1730860247749,-1560.96,0.00039178,14]
[341379671,1730860247758,-500.0,0.00039178,14]
[341379672,1730860247773,-500.0,0.00039178,14]
[341379673,1730860247782,-1693.4,0.00039178,14]
[341379674,1730860247792,-500.0,0.00039178,14]
[341379675,1730860247802,-500.0,0.00039178,14]
[341379676,1730860247811,-826.25,0.00039178,14]
[341379677,1730860247820,-500.0,0.00039178,14]
[341379678,1730860247830,-561.86191828,0.00039178,14]
[341379679,1730860247839,-678.84,0.00039178,14]
[341379680,1730860247848,-500.0,0.00039178,14]
[341379681,1730860247858,-164.151,0.0003928,14]
[341379682,1730860247867,-613.0,0.000394,2]
[341379683,1730860247876,-500.0,0.00039451,10]
[341379684,1730860247885,-1682.22,0.00039451,14]
[341379685,1730860247895,-500.0,0.00039451,14]
[341379686,1730860247904,-794.19,0.00039451,14]
[341379687,1730860247914,-500.0,0.00039452,14]
[341379688,1730860247995,-765.44,0.00039452,14]
[341379689,1730860248005,-500.0,0.00039452,14]
[341379690,1730860248019,-647.78,0.00039452,14]
[341379691,1730860248028,-1335.42,0.00039452,14]
[341379692,1730860248038,-500.0,0.00039452,14]
[341379693,1730860248048,-500.0,0.00039452,14]
[341379694,1730860248057,-2232.15,0.00039452,14]
[341379695,1730860248066,-500.0,0.00039452,14]
[341379696,1730860248076,-500.0,0.00039452,14]
[341379697,1730860248085,-500.0,0.00039452,14]
[341379698,1730860248095,-500.0,0.00039452,14]
[341379699,1730860248108,-500.0,0.00039452,14]
[341379700,1730860248117,-3651.9,0.00039452,14]
[341379701,1730860248126,-500.0,0.00039452,14]
[341379702,1730860248136,-5002.61,0.00039452,14]
[341379703,1730860248146,-500.0,0.00039452,14]
[341379704,1730860248155,-958.48,0.00039452,14]
[341379705,1730860248165,-1560.96,0.00039452,14]
[341379706,1730860248175,-500.0,0.00039452,14]
[341379707,1730860248185,-500.0,0.00039452,14]
[341379708,1730860248195,-1693.4,0.00039452,14]
[341379709,1730860248204,-500.0,0.00039452,14]
[341379710,1730860248214,-500.0,0.00039452,14]
[341379711,1730860248223,-826.25,0.00039452,14]
[341379712,1730860248232,-500.0,0.00039452,14]
[341379713,1730860248241,-678.84,0.00039452,14]
[341379714,1730860248250,-500.0,0.00039452,14]
[341379715,1730860248259,-1682.22,0.00039725,14]
[341379716,1730860248273,-500.0,0.00039725,14]
[341379717,1730860248283,-794.19,0.00039725,14]
[341379718,1730860248292,-500.0,0.00039726,14]
[341379719,1730860248302,-765.44,0.00039726,14]
[341379720,1730860248311,-500.0,0.00039726,14]
[341379721,1730860248320,-647.78,0.00039726,14]
[341379722,1730860248329,-1335.42,0.00039726,14]
[341379723,1730860248339,-500.0,0.00039726,14]
[341379724,1730860248349,-500.0,0.00039726,14]
[341379725,1730860248359,-2232.15,0.00039726,14]
[341379726,1730860248368,-500.0,0.00039726,14]
[341379727,1730860248377,-500.0,0.00039726,14]
[341379728,1730860248386,-500.0,0.00039726,14]
[341379729,1730860248395,-500.0,0.00039726,14]
[341379730,1730860248405,-500.0,0.00039726,14]
[341379731,1730860248414,-3651.9,0.00039726,14]
[341379732,1730860248423,-509.12546803,0.00039726,14]
[341379733,1730860248432,-5002.61,0.00039726,14]
[341379734,1730860248442,-498.11382332,0.00039726,14]
[341379735,1730860248452,-958.48,0.00039726,14]
[341379736,1730860248461,-1560.96,0.00039726,14]
[341379737,1730860248470,-500.0,0.00039726,14]
[341379738,1730860248479,-500.0,0.00039726,14]
[341379739,1730860248489,-1693.4,0.00039726,14]
[341379740,1730860248499,-500.0,0.00039726,14]
[341379741,1730860248509,-500.0,0.00039726,14]
[341379742,1730860248523,-826.25,0.00039726,14]
[341379743,1730860248532,-166.135442,0.00039726,14]
[341379744,1730860248541,-500.0,0.00039726,14]
[341379745,1730860248551,-678.84,0.00039726,14]
[341379746,1730860248560,-500.0,0.00039726,14]
[341379747,1730860248570,-260.088808,0.00039726,14]
[341379748,1730860248580,-260.088808,0.00039726,14]
[341379749,1730860248589,-999.0,0.00039862,120]
[341379750,1730860248599,-2008.65734803,0.0003999,120]
[341379751,1730860248609,-1682.22,0.00039999,14]
[341379752,1730860248619,-500.0,0.00039999,14]
[341379753,1730860248629,-794.19,0.00039999,14]
[341379754,1730860248639,-500.0,0.0004,14]
[341379755,1730860248649,-765.44,0.0004,14]
[341379756,1730860248659,-500.0,0.0004,14]
[341379757,1730860248669,-647.78,0.0004,14]
[341379758,1730860248680,-1335.42,0.0004,14]
[341379759,1730860248690,-505.34907639,0.0004,15]
[341379760,1730860248699,-500.0,0.0004,14]
[341379761,1730860248710,-500.0,0.0004,14]
[341379762,1730860248719,-2232.15,0.0004,14]
[341379763,1730860248729,-500.0,0.0004,15]
[341379764,1730860248739,-500.0,0.0004,14]
[341379765,1730860248747,-327.89995054,0.0004,14]
[341379766,1730860248757,-500.0,0.0004,14]
[341379767,1730860248776,-500.0,0.0004,14]
[341379768,1730860248785,-500.0,0.0004,14]
[341379769,1730860248795,-3651.9,0.0004,14]
[341379770,1730860248804,-5002.61,0.0004,14]
[341379771,1730860248813,-1560.96,0.0004,14]
[341379772,1730860248822,-500.0,0.0004,14]
[341379773,1730860248832,-500.0,0.0004,14]
[341379774,1730860248841,-1693.4,0.0004,14]
[341379775,1730860248851,-500.0,0.0004,14]
[341379776,1730860248860,-500.0,0.0004,14]
[341379777,1730860248870,-826.25,0.0004,14]
[341379778,1730860248879,-500.0,0.0004,14]
[341379779,1730860248888,-678.84,0.0004,14]
[341379780,1730860248897,-500.0,0.0004,14]
[341379781,1730860248907,-500.0,0.00040273,14]
[341379782,1730860248916,-765.44,0.00040273,14]
[341379783,1730860248925,-500.0,0.00040273,14]
[341379784,1730860248934,-647.78,0.00040273,14]
[341379785,1730860248943,-1335.42,0.00040273,14]
[341379786,1730860248952,-500.0,0.00040273,14]
[341379787,1730860248961,-500.0,0.00040273,14]
[341379788,1730860248970,-2232.15,0.00040273,14]
[341379789,1730860248980,-500.0,0.00040273,13]
[341379790,1730860248989,-500.0,0.00040273,14]
[341379791,1730860248998,-500.0,0.00040273,14]
[341379792,1730860249008,-500.0,0.00040273,14]
[341379793,1730860249020,-500.0,0.00040273,14]
[341379794,1730860249030,-1682.22,0.00040273,14]
[341379795,1730860249039,-3651.9,0.00040273,14]
[341379796,1730860249049,-500.0,0.00040273,14]
[341379797,1730860249058,-5002.61,0.00040273,14]
[341379798,1730860249067,-1560.96,0.00040273,14]
[341379799,1730860249076,-500.0,0.00040273,14]
[341379800,1730860249085,-500.0,0.00040273,14]
[341379801,1730860249095,-1693.4,0.00040273,14]
[341379802,1730860249104,-500.0,0.00040273,14]
[341379803,1730860249114,-500.0,0.00040273,14]
[341379804,1730860249127,-826.25,0.00040273,14]
[341379805,1730860249136,-500.0,0.00040273,14]
[341379806,1730860249145,-794.19,0.00040273,14]
[341379807,1730860249155,-678.84,0.00040273,14]
[341379808,1730860249165,-500.0,0.00040273,14]
[341379809,1730860249175,-260.088808,0.00040273,14]
[341379810,1730860249184,-260.088808,0.00040273,14]
[341379811,1730860249193,-3522.48131298,0.000405,2]
[341379812,1730860249204,-35493.86494188,0.000405,60]
[341379813,1730860249214,-150.01,0.00040546,2]
[341379814,1730860249224,-151.30473744,0.00040547,14]
[341379815,1730860249233,-500.0,0.00040547,14]
[341379816,1730860249242,-765.44,0.00040547,14]
[341379817,1730860249251,-500.0,0.00040547,14]
[341379818,1730860249264,-647.78,0.00040547,14]
[341379819,1730860249273,-1335.42,0.00040547,14]
[341379820,1730860249283,-202.4154,0.00040547,14]
[341379821,1730860249291,-500.0,0.00040547,14]
[341379822,1730860249300,-500.0,0.00040547,14]
[341379823,1730860249310,-151.0,0.00040547,14]
[341379824,1730860249319,-2232.15,0.00040547,14]
[341379825,1730860249328,-500.0,0.00040547,14]
[341379826,1730860249337,-500.0,0.00040547,14]
[341379827,1730860249346,-500.0,0.00040547,14]
[341379828,1730860249356,-500.0,0.00040547,14]
[341379829,1730860249365,-1682.22,0.00040547,14]
[341379830,1730860249375,-3651.9,0.00040547,14]
[341379831,1730860249384,-500.0,0.00040547,14]
[341379832,1730860249393,-5002.61,0.00040547,14]
[341379833,1730860249403,-1560.96,0.00040547,14]
[341379834,1730860249412,-500.0,0.00040547,14]
[341379835,1730860249422,-500.0,0.00040547,14]
[341379836,1730860249431,-1693.4,0.00040547,14]
[341379837,1730860249440,-500.0,0.00040547,14]
[341379838,1730860249449,-500.0,0.00040547,14]
[341379839,1730860249458,-826.25,0.00040547,14]
[341379840,1730860249467,-500.0,0.00040547,14]
[341379841,1730860249477,-794.19,0.00040547,14]
[341379842,1730860249486,-678.84,0.00040547,14]
[341379843,1730860249496,-500.0,0.00040547,14]
[341379844,1730860249506,-1959.6173389,0.00040721,2]
[341379845,1730860249517,-154.804561,0.00040821,14]
[341379846,1730860249527,-500.0,0.00040821,14]
[341379847,1730860249536,-765.44,0.00040821,14]
[341379848,1730860249545,-500.0,0.00040821,14]
[341379849,1730860249555,-647.78,0.00040821,14]
[341379850,1730860249564,-1335.42,0.00040821,14]
[341379851,1730860249573,-500.0,0.00040821,14]
[341379852,1730860249583,-500.0,0.00040821,14]
[341379853,1730860249592,-2232.15,0.00040821,14]
[341379854,1730860249601,-500.0,0.00040821,14]
[341379855,1730860249611,-500.0,0.00040821,14]
[341379856,1730860249620,-500.0,0.00040821,14]
[341379857,1730860249629,-500.0,0.00040821,14]
[341379858,1730860249639,-1682.22,0.00040821,14]
[341379859,1730860249648,-3651.9,0.00040821,14]
[341379860,1730860249657,-500.0,0.00040821,14]
[341379861,1730860249666,-5002.61,0.00040821,14]
[341379862,1730860249675,-1560.96,0.00040821,14]
[341379863,1730860249684,-500.0,0.00040821,14]
[341379864,1730860249693,-500.0,0.00040821,14]
[341379865,1730860249702,-1693.4,0.00040821,14]
[341379866,1730860249712,-500.0,0.00040821,14]
[341379867,1730860249721,-500.0,0.00040821,14]
[341379868,1730860249731,-826.25,0.00040821,14]
[341379869,1730860249740,-500.0,0.00040821,14]
[341379870,1730860249749,-794.19,0.00040821,14]
[341379871,1730860249758,-999.0,0.00040821,120]
[341379872,1730860249773,-678.84,0.00040821,14]
[341379873,1730860249782,-500.0,0.00040821,14]
[341379874,1730860249791,-260.088808,0.00040821,14]
[341379875,1730860249800,-260.088808,0.00040821,14]
[341379876,1730860249810,-1959.6173389,0.00040852,2]
[341379877,1730860249819,-300.0,0.000409,20]
[341379878,1730860249829,-164.131,0.00040917,120]
[341379879,1730860249838,-1959.6173389,0.00040983,2]